bitfinex-derivatives/quotes_ETHF0:USTF0_20250824
["timestamp","ask_amount","ask_price","bid_price","bid_amount"]
[1756077990269,3.3136,4799.9,4799.8,1.8688]
[1756077991066,0.1058,4799.9,4799.8,1.8688]
[1756077994069,3.2078,4800.0,4799.9,1.3733]
[1756077994268,4.14227257,4800.0,4799.9,1.8377]
[1756077994570,4.19387257,4800.0,4799.9,1.8377]
[1756077994769,4.22607257,4800.0,4799.9,1.8377]
[1756077998581,4.28977257,4800.0,4799.9,0.3891]
[1756077998876,0.1536,4799.7,4799.3,0.3891]
[1756077999082,0.1536,4799.3,4799.0,0.2156]
[1756077999277,0.1536,4799.3,4799.2,0.3826]
[1756077999471,20.5329087,4799.3,4799.2,0.7717]
[1756077999877,20.5651087,4799.3,4799.2,0.7717]
[1756078000375,20.6288087,4799.3,4799.2,0.3891]
[1756078000577,20.45658451,4799.3,4799.2,0.3891]
[1756078000876,20.62880745,4799.3,4799.2,0.3891]
[1756078001381,0.0322,4799.1,4797.8,3.5969]
[1756078001579,1.49287335,4800.2,4797.8,3.5969]
[1756078001580,0.1858,4797.9,4797.8,0.3891]
[1756078001779,20.62683025,4797.9,4797.8,0.3891]
[1756078002179,0.1858,4797.2,4797.1,1.1015]
[1756078002387,3.3936,4797.2,4797.1,1.1015]
[1756078002788,3.3936,4797.2,4797.1,1.4906]
[1756078003886,3.3936,4797.2,4797.1,1.8377]
[1756078006089,3.3936,4797.2,4797.1,1.4906]
[1756078006291,3.4573,4797.2,4797.1,0.3891]
[1756078006795,0.1536,4796.8,4796.7,0.6314]
[1756078007096,0.1858,4796.4,4796.3,0.5627]
[1756078007293,0.1858,4796.4,4796.3,0.8115]
[1756078007496,0.1858,4796.4,4796.3,1.8377]
[1756078007885,0.1536,4796.4,4796.3,1.8377]
[1756078008086,19.544,4796.5,4796.4,1.8377]
[1756078008393,22.7508,4796.7,4796.5,1.8377]
[1756078008596,22.7508,4796.7,4795.5,3.2078]
[1756078008597,22.9366,4796.7,4796.6,1.8377]
[1756078008793,22.9366,4796.7,4796.6,1.4906]
[1756078008987,63.7366,4796.7,4796.6,1.4906]
[1756078009296,63.8003,4796.7,4796.6,0.3891]
[1756078011794,63.7366,4796.7,4796.6,0.3891]
[1756078011989,63.7366,4796.7,4796.6,1.4906]
[1756078012188,60.447,4796.7,4796.6,1.8377]
[1756078012494,19.545,4796.7,4796.6,1.8377]
[1756078012699,19.6986,4796.7,4796.6,1.8377]
[1756078012998,22.9386,4796.7,4796.6,1.8377]
[1756078014301,22.9386,4796.7,4796.2,0.7297]
[1756078014302,23.0023,4796.7,4796.2,0.7297]
[1756078014494,0.1536,4796.4,4796.3,0.3891]
[1756078014802,19.7298,4796.4,4796.3,0.3891]
[1756078015599,19.7298,4796.4,4796.3,0.7717]
[1756078016099,19.7298,4796.4,4796.3,1.0205]
[1756078016793,19.7298,4796.4,4796.3,0.6379]
[1756078017199,19.7298,4796.4,4796.3,1.0205]
[1756078017499,19.7298,4796.4,4796.3,1.4906]
[1756078017896,19.7298,4796.4,4796.3,1.8377]
[1756078021105,19.7817,4796.4,4796.3,0.6047]
[1756078021296,19.7298,4796.4,4796.3,0.6047]
[1756078021501,19.7298,4796.4,4796.3,1.8619]
[1756078022408,3.2078,4796.7,4796.6,1.884]
[1756078022602,22.7508,4796.7,4796.6,1.884]
[1756078022798,3.2078,4796.7,4796.6,1.884]
[1756078023909,19.541,4796.9,4796.6,1.884]
[1756078024211,0.083,4796.8,4796.7,1.884]
[1756078025509,0.115,4796.8,4796.7,1.884]
[1756078027807,19.654,4796.8,4796.7,1.884]
[1756078028009,19.653,4796.8,4796.7,1.884]
[1756078028408,20.31289768,4796.8,4796.7,1.884]
[1756078029711,20.31347791,4796.8,4796.7,1.884]
[1756078030410,20.48493062,4796.8,4796.7,1.884]
[1756078033113,20.50493062,4796.8,4796.7,1.884]
[1756078033309,20.55683062,4796.8,4796.4,0.3913]
[1756078033609,0.135,4796.4,4796.3,0.3871]
[1756078033816,0.135,4795.7,4795.6,1.4927]
[1756078034014,20.33041076,4795.7,4795.6,1.5369]
[1756078034810,20.33041076,4795.7,4795.6,1.884]
[1756078035012,20.50224195,4795.7,4795.6,1.5369]
[1756078035209,20.55414195,4795.7,4795.6,0.3913]
[1756078036010,20.55414195,4795.7,4795.6,0.7784]
[1756078036716,20.50224195,4795.7,4795.6,0.7784]
[1756078037315,20.50224195,4795.7,4795.6,1.0441]
[1756078037510,20.50224195,4795.7,4794.5,3.2078]
[1756078037716,20.50224195,4795.7,4794.7,0.3913]
[1756078037717,0.1669,4794.8,4794.7,0.3913]
[1756078037912,19.6979,4794.8,4794.2,0.3913]
[1756078038214,0.135,4794.3,4794.2,1.0357]
[1756078038417,61.17931076,4794.3,4794.2,0.3913]
[1756078041021,0.1869,4794.2,4794.1,0.09595027]
[1756078041221,1.02072292,4794.2,4794.1,0.09595027]
[1756078041424,5.02072292,4794.2,4794.1,0.02405027]
[1756078041825,20.49682292,4794.2,4794.1,0.41535027]
[1756078042019,20.49682292,4794.2,4794.1,1.05975027]
[1756078042220,20.49882292,4794.2,4794.1,0.02405027]
[1756078043321,0.96882292,4794.2,4794.1,0.02405027]
[1756078043527,20.49782292,4794.2,4794.1,0.02405027]
[1756078043921,24.47782292,4794.2,4793.3,0.3913]
[1756078044116,3.2078,4793.4,4793.3,0.3913]
[1756078044324,23.39821076,4793.4,4792.8,1.2712]
[1756078044525,3.2078,4792.9,4792.8,1.2712]
[1756078044725,23.39821076,4792.9,4792.8,1.0357]
[1756078044920,23.39821076,4792.9,4792.8,0.3913]
[1756078045728,23.39821076,4792.9,4792.8,0.7784]
[1756078045923,23.39821076,4792.9,4792.8,1.884]
[1756078046428,23.39821076,4792.9,4791.5,0.16418562]
[1756078046726,20.19141076,4792.8,4792.7,1.0357]
[1756078047124,20.19141076,4792.8,4791.4,1.1255]
[1756078047325,3.2078,4792.4,4792.3,0.7585]
[1756078047524,23.39821076,4792.4,4792.3,1.5369]
[1756078047729,23.40161076,4792.4,4792.3,1.5369]
[1756078048229,23.40461076,4792.4,4792.3,0.3913]
[1756078048521,23.40461076,4792.4,4791.9,0.3779]
[1756078048522,0.0034,4791.8,4791.7,0.2329]
[1756078048726,0.0013,4791.7,4791.4,0.3381]
[1756078048918,0.0034,4791.7,4791.6,0.5649]
[1756078049119,0.0034,4791.7,4791.3,3.2078]
[1756078049324,0.0034,4791.4,4791.3,0.994]
[1756078049625,20.19420829,4791.4,4791.3,0.3832]
[1756078050022,20.18657106,4791.4,4791.3,0.3832]
[1756078050218,20.18604867,4791.4,4791.3,0.3832]
[1756078051828,20.18604867,4791.4,4791.3,1.8194]
[1756078051829,20.1932859,4791.4,4791.3,1.8194]
[1756078052226,20.19200367,4791.4,4791.3,1.4813]
[1756078052827,0.65900367,4791.4,4791.3,1.8194]
[1756078053925,22.7388,4791.8,4791.7,0.7202]
[1756078054128,23.39758347,4791.8,4791.7,1.8194]
[1756078054426,20.19278347,4791.8,4791.7,1.8194]
[1756078055130,20.19278347,4791.8,4791.7,0.3832]
[1756078055625,20.19278347,4791.8,4791.7,0.994]
[1756078055932,20.19278347,4791.8,4791.7,1.8194]
[1756078056930,20.19078347,4791.8,4791.7,1.8194]
[1756078058028,0.65878347,4791.8,4791.7,1.8194]
[1756078058422,19.533,4792.2,4792.1,0.7202]
[1756078058637,20.19201589,4792.2,4792.1,1.8194]
[1756078062224,0.65901589,4792.2,4792.1,1.8194]
[1756078063734,0.30321589,4792.2,4792.1,5.8194]
[1756078064831,3.2078,4793.1,4792.1,5.8194]
[1756078065034,0.8035,4793.3,4793.2,0.7202]
[1756078065223,0.8035,4793.3,4793.2,1.8194]
[1756078066921,0.8035,4793.3,4792.2,3.2078]
[1756078066922,3.782,4793.6,4793.5,0.4934]
[1756078067128,3.85626662,4793.6,4793.5,1.8194]
[1756078067328,3.453,4793.6,4793.5,1.8194]
[1756078067623,19.7732,4793.9,4793.8,0.7202]
[1756078067933,3.2078,4794.3,4793.8,0.7202]
[1756078067934,3.5368,4794.3,4793.9,0.7611]
[1756078068232,0.8035,4794.8,4794.7,0.7202]
[1756078068432,0.97741736,4794.8,4794.7,1.8194]
[1756078070532,20.50341736,4794.8,4794.7,1.8194]
[1756078070731,0.97741736,4794.8,4794.7,1.8194]
[1756078070934,20.50341736,4794.8,4794.7,1.8194]
[1756078071436,20.50341736,4794.8,4794.7,1.2208]
[1756078071638,20.50341736,4794.8,4794.7,1.5589]
[1756078071939,20.79211736,4794.8,4794.4,0.3832]
[1756078072235,1.0922,4794.6,4794.5,0.3832]
[1756078072533,0.8035,4794.6,4794.5,1.8194]
[1756078072735,19.522,4794.8,4794.7,0.7202]
[1756078073033,19.522,4794.8,4794.7,1.8194]
[1756078073636,20.3255,4794.8,4794.7,1.8194]
[1756078073930,0.8035,4794.8,4794.7,1.8194]
[1756078074328,20.3245,4794.8,4794.7,1.8194]
[1756078074529,0.8035,4794.8,4794.7,1.8194]
[1756078074830,20.3245,4794.8,4794.7,1.8194]
[1756078075228,20.3225,4794.8,4794.7,1.8194]
[1756078076933,20.97350249,4794.8,4794.7,1.8194]
[1756078079428,20.97350249,4794.8,4794.7,1.4813]
[1756078079831,20.97350249,4794.8,4794.7,1.8305]
[1756078080140,21.25510249,4794.8,4794.7,1.4813]
[1756078080433,21.25510249,4794.8,4793.7,0.7342]
[1756078080434,0.7606,4793.8,4793.7,0.7342]
[1756078080632,0.2318,4792.8,4792.7,0.2552]
[1756078080833,0.479,4792.4,4791.9,0.6044]
[1756078081028,0.479,4792.4,4791.8,3.2078]
[1756078081029,0.5684,4792.2,4792.1,1.5711]
[1756078081330,0.2816,4793.0,4792.4,1.7999]
[1756078081536,61.7776641,4792.9,4792.8,0.7165]
[1756078081837,61.7776641,4792.9,4792.8,1.7999]
[1756078082135,20.9776641,4792.9,4792.8,1.7999]
[1756078082635,21.2592641,4792.9,4792.8,1.2182]
[1756078082828,21.2592641,4792.9,4792.8,1.4507]
[1756078084032,21.2592641,4792.9,4792.4,0.6044]
[1756078084337,1.0972,4792.6,4792.5,1.5674]
[1756078084535,0.8156,4792.6,4792.5,1.2182]
[1756078084736,0.8156,4792.6,4792.5,1.7999]
[1756078086038,0.2472,4793.1,4793.0,1.7999]
[1756078086239,0.89902758,4793.1,4793.0,1.7999]
[1756078087228,0.2472,4793.1,4793.0,1.7999]
[1756078089537,0.8156,4793.1,4793.0,1.7999]
[1756078089738,1.0972,4793.1,4793.0,0.3776]
[1756078089935,0.479,4792.6,4792.4,3.5854]
[1756078090130,0.2472,4792.6,4792.5,1.7999]
[1756078090330,0.2816,4793.4,4792.5,0.7165]
[1756078090531,0.8156,4793.2,4793.1,0.7165]
[1756078090740,0.8156,4793.2,4793.1,1.4507]
[1756078090938,20.3236,4793.2,4793.1,1.7999]
[1756078091234,3.4396,4793.5,4793.4,0.7165]
[1756078091544,3.7762,4793.5,4793.4,1.4223]
[1756078091732,4.0234,4793.5,4793.4,1.4223]
[1756078091933,0.8156,4793.5,4793.4,1.4223]
[1756078092543,0.8156,4793.5,4793.4,1.7999]
[1756078093644,0.6182,4793.4,4792.5,1.0834]
[1756078093944,0.479,4792.8,4792.7,1.4507]
[1756078094133,0.8156,4792.8,4792.7,1.4507]
[1756078094337,1.0972,4792.8,4792.7,1.4507]
[1756078094839,0.8156,4792.8,4792.7,1.7999]
[1756078096639,0.8156,4792.8,4792.4,3.2078]
[1756078096640,0.3366,4793.2,4792.8,1.0834]
[1756078096841,0.8156,4793.2,4793.1,1.7999]
[1756078098241,1.0972,4793.2,4793.1,1.4507]
[1756078098441,1.0972,4793.2,4793.1,0.7342]
[1756078098642,0.8156,4793.2,4793.1,1.7999]
[1756078101638,0.3366,4793.5,4793.1,1.0941]
[1756078101848,19.8356,4793.5,4793.4,1.7999]
[1756078102651,0.8156,4793.5,4793.4,1.7999]
[1756078102851,1.27326248,4793.5,4793.4,0.3776]
[1756078103352,20.77226248,4793.5,4793.4,1.4507]
[1756078104247,21.42502519,4793.5,4793.4,1.7999]
[1756078104554,21.42402519,4793.5,4793.4,1.7999]
[1756078104948,20.77126248,4793.5,4793.4,1.7999]
[1756078105148,21.42402617,4793.5,4793.4,1.7999]
[1756078105343,21.42402617,4793.5,4792.4,3.2078]
[1756078105344,20.80582617,4793.5,4793.2,0.3776]
[1756078105549,1.0972,4793.3,4793.2,0.3776]
[1756078105849,1.27326248,4793.3,4793.2,0.3776]
[1756078106351,1.27326248,4793.3,4793.2,0.7342]
[1756078106552,1.0972,4793.3,4793.2,1.2182]
[1756078106752,0.99187486,4793.3,4793.2,1.7999]
[1756078106955,0.2472,4793.3,4793.2,1.7999]
[1756078107346,0.42354352,4793.3,4793.2,1.7999]
[1756078107746,0.17634352,4793.3,4793.2,1.7999]
[1756078108558,0.97274352,4793.3,4793.2,1.7999]
[1756078108752,1.62660077,4793.3,4793.2,1.7999]
[1756078110360,1.45025725,4793.3,4793.2,1.7999]
[1756078112763,1.45025725,4793.3,4793.2,1.7783]
[1756078113263,1.45025725,4793.3,4793.2,1.4473]
[1756078113459,1.71705725,4793.3,4793.2,1.223]
[1756078113669,0.65385725,4793.3,4793.2,1.7783]
[1756078113959,0.3351,4794.2,4793.2,1.4217]
[1756078114164,20.94010138,4794.1,4794.0,1.773]
[1756078114558,21.20690138,4794.1,4794.0,1.442]
[1756078114963,1.71790138,4794.1,4794.0,1.442]
[1756078115966,1.71790138,4794.1,4794.0,1.2177]
[1756078116862,0.65460138,4794.1,4794.0,1.773]
[1756078117062,3.2078,4794.9,4794.8,0.4765]
[1756078117267,3.86230362,4794.9,4794.8,1.773]
[1756078117766,4.65880362,4794.9,4794.8,1.773]
[1756078118166,4.32370362,4794.9,4794.8,1.773]
[1756078118367,3.86230362,4794.9,4794.8,1.773]
[1756078119566,0.65450362,4794.9,4794.8,1.773]
[1756078119760,22.6908,4795.5,4794.8,0.7008]
[1756078119961,22.6908,4795.5,4795.4,1.773]
[1756078120160,3.86107875,4795.5,4795.4,1.442]
[1756078120363,23.80247875,4795.5,4795.1,0.3678]
[1756078120559,23.80247875,4795.5,4794.4,0.3678]
[1756078120560,0.4614,4794.8,4794.4,0.3678]
[1756078120759,0.7965,4794.5,4794.4,0.9846]
[1756078120967,0.7965,4794.5,4794.4,1.773]
[1756078124062,22.6838,4794.8,4794.7,0.7008]
[1756078124268,3.2078,4794.8,4794.7,1.773]
[1756078124966,40.8,4795.5,4794.7,1.0686]
[1756078125176,20.92271971,4795.4,4795.3,1.773]
[1756078125467,21.18951971,4795.4,4795.3,1.2177]
[1756078125773,20.92271971,4795.4,4795.3,1.773]
[1756078126469,20.92271971,4795.4,4795.3,1.442]
[1756078126761,21.18951971,4795.4,4795.3,1.442]
[1756078127362,0.2668,4795.1,4794.0,1.0722]
[1756078127562,0.7965,4794.9,4794.8,1.2177]
[1756078127873,0.7965,4794.9,4794.8,1.773]
[1756078129867,3.2078,4795.0,4794.8,1.773]
[1756078130074,3.2078,4795.0,4794.9,1.773]
[1756078130273,19.469,4795.1,4794.9,0.7008]
[1756078130476,44.0078,4795.5,4795.0,1.773]
[1756078130666,19.6985,4795.4,4795.3,0.7008]
[1756078130871,19.6985,4795.4,4795.3,1.773]
[1756078131380,19.9304,4795.4,4795.3,1.773]
[1756078131579,0.4614,4795.4,4795.3,1.773]
[1756078133479,20.2625,4795.4,4795.3,1.773]
[1756078136173,0.7965,4795.4,4795.3,1.773]
[1756078136873,0.2319,4795.4,4795.3,1.773]
[1756078137677,0.3351,4795.7,4795.3,1.773]
[1756078137869,19.8156,4795.6,4795.5,0.7022]
[1756078138074,0.3546,4795.6,4795.5,1.7607]
[1756078138670,19.8146,4795.6,4795.5,1.7607]
[1756078139780,0.3546,4795.6,4795.5,1.7607]
[1756078139977,3.4372,4796.0,4795.9,0.4701]
[1756078140177,0.452,4796.0,4795.9,1.7607]
[1756078140978,0.2294,4796.0,4795.9,1.7607]
[1756078141282,19.8116,4796.2,4795.9,1.7607]
[1756078141487,19.8116,4796.2,4795.3,3.2078]
[1756078141488,20.2636,4796.2,4796.1,1.4125]
[1756078141677,0.8066,4796.2,4796.1,1.7607]
[1756078141872,19.456,4796.5,4795.3,3.62492]
[1756078142079,19.908,4796.5,4796.4,0.7022]
[1756078142378,1.10322163,4796.5,4796.4,1.7607]
[1756078142578,20.91382163,4796.5,4796.4,1.7607]
[1756078143581,20.91282163,4796.5,4796.4,1.7607]
[1756078144682,1.45782163,4796.5,4796.4,1.7607]
[1756078144879,20.90982163,4796.5,4796.4,1.7607]
[1756078145079,1.45782163,4796.5,4796.4,1.7607]
[1756078145279,3.2078,4796.7,4796.6,1.7607]
[1756078147983,3.2078,4797.4,4796.6,0.7022]
[1756078148184,3.2078,4797.4,4797.3,0.7022]
[1756078148390,4.66544369,4797.4,4797.3,1.7607]
[1756078148583,4.0144,4797.4,4797.3,1.7607]
[1756078148778,0.8066,4797.4,4797.3,1.7607]
[1756078150085,0.3546,4797.7,4797.3,1.7607]
[1756078150287,0.8066,4797.6,4797.5,0.7022]
[1756078150486,0.8066,4797.6,4797.5,1.7607]
[1756078154190,3.2078,4798.6,4798.0,1.0504]
[1756078154486,1.45624143,4798.5,4798.4,1.7607]
[1756078154695,30.035,4799.0,4798.9,0.7022]
[1756078154696,0.8066,4799.0,4798.9,0.7022]
[1756078154884,0.2294,4799.0,4798.9,1.7607]
[1756078155085,3.2078,4799.1,4799.0,1.7607]
[1756078157498,0.3546,4799.3,4799.0,0.7022]
[1756078157692,0.8066,4799.3,4799.2,1.7607]
[1756078157893,0.452,4799.3,4799.2,1.7607]
[1756078158098,3.2078,4799.9,4799.2,0.7022]
[1756078158293,1.45404258,4799.8,4799.7,1.7607]
[1756078159499,0.8066,4799.8,4799.7,1.7607]
[1756078160598,0.2556,4800.4,4799.7,1.7607]
[1756078160793,0.8066,4799.9,4799.8,1.7607]
[1756078160999,0.5772,4799.9,4799.8,1.7607]
[1756078161201,0.2556,4800.4,4799.8,0.7022]
[1756078161498,1.45319396,4800.1,4800.0,1.7607]
[1756078161999,0.87599396,4800.1,4800.0,1.7607]
[1756078162497,0.64659396,4800.1,4800.0,1.7607]
[1756078162702,40.8,4801.2,4800.0,1.7607]
[1756078162703,0.3546,4801.1,4800.1,1.7607]
[1756078163398,0.3546,4801.5,4800.2,1.0585]
[1756078163599,1.1622,4801.5,4801.4,1.1972]
[1756078163800,1.80617214,4801.5,4801.4,1.1972]
[1756078165497,1.80617214,4801.5,4801.4,0.3482]
[1756078165900,1.80617214,4801.5,4801.4,0.7271]
[1756078166701,1.45057214,4801.5,4801.4,1.7607]
[1756078167095,1.45057214,4801.5,4801.4,0.7271]
[1756078167096,1.80617214,4801.5,4801.4,0.7271]
[1756078168700,1.80617214,4801.5,4801.4,1.7644]
[1756078168900,1.80617214,4801.5,4801.4,0.7271]
[1756078169198,0.4622,4801.0,4800.9,0.5689]
[1756078169401,4.97654981,4801.0,4800.9,0.5689]
[1756078169598,4.97654981,4801.0,4800.9,0.8086]
[1756078169793,4.97654981,4801.0,4800.9,1.7628]
[1756078169994,4.65054981,4801.0,4800.9,1.7628]
[1756078170999,4.97654981,4801.0,4800.9,1.7628]
[1756078172004,4.97654981,4801.0,4800.9,1.4277]
[1756078172305,4.97654981,4801.0,4800.6,0.7278]
[1756078172497,0.7993,4800.8,4800.7,0.7278]
[1756078172701,1.76874981,4800.8,4800.7,0.7278]
[1756078174007,0.4622,4800.6,4800.5,0.7278]
[1756078174206,1.76874981,4800.6,4800.5,0.7278]
[1756078174702,1.76874981,4800.6,4800.5,0.9616]
[1756078174904,0.4622,4800.3,4800.1,3.2078]
[1756078175099,3.2078,4801.0,4800.1,3.2078]
[1756078175100,1.76874981,4800.2,4800.1,3.2078]
[1756078175300,1.76874981,4800.2,4800.1,3.9356]
[1756078175501,1.76874981,4800.2,4800.1,4.9706]
[1756078175698,0.64344981,4800.2,4800.1,4.9706]
[1756078175893,1.10564981,4800.2,4800.1,3.9077]
[1756078176093,1.44274981,4800.2,4800.1,3.9077]
[1756078176402,1.44274981,4800.2,4800.1,4.9706]
[1756078177405,1.76874981,4800.2,4800.1,4.6355]
[1756078177906,1.76874981,4800.2,4799.8,0.5689]
[1756078178101,1.1253,4799.9,4799.8,0.9616]
[1756078178308,1.76874981,4799.9,4799.8,0.7278]
[1756078178705,0.2374,4799.6,4799.3,0.9616]
[1756078179006,1.1253,4799.4,4799.3,0.2338]
[1756078179208,1.76874981,4799.4,4799.3,0.2338]
[1756078179506,1.76874981,4799.4,4799.3,0.9616]
[1756078180114,1.76874981,4799.4,4799.3,1.2013]
[1756078180406,1.76874981,4799.4,4799.3,1.4277]
[1756078181709,1.44274981,4799.4,4799.3,1.7628]
[1756078182504,0.4622,4799.0,4798.9,0.3737]
[1756078182705,0.7993,4798.7,4798.6,0.3737]
[1756078183008,1.76874981,4798.7,4798.6,0.3737]
[1756078183211,1.76874981,4798.7,4798.6,0.7278]
[1756078183708,1.76874981,4798.7,4798.6,0.9616]
[1756078183908,1.76874981,4798.7,4798.6,0.7278]
[1756078184912,1.76874981,4798.7,4798.2,0.3541]
[1756078185112,0.4622,4798.3,4798.1,0.5689]
[1756078185307,1.44274981,4798.2,4798.1,1.035]
[1756078185810,1.76874981,4798.2,4798.1,0.7278]
[1756078186408,1.76874981,4798.2,4797.9,0.7278]
[1756078186409,0.2248,4798.0,4797.9,0.7278]
[1756078186611,1.76874981,4798.0,4797.9,1.7628]
[1756078187308,1.76874981,4798.0,4797.8,3.2078]
[1756078187507,1.76874981,4798.0,4791.5,4.86062797]
[1756078187508,1.1253,4797.3,4797.2,1.4277]
[1756078187708,1.44274981,4797.3,4797.2,1.7628]
[1756078187906,0.64344981,4797.3,4797.2,1.7628]
[1756078188307,0.7993,4797.5,4797.4,0.6999]
[1756078188607,1.45987164,4797.5,4797.4,1.7628]
[1756078190211,0.66057164,4797.5,4797.4,1.7628]
[1756078190808,1.45987164,4797.5,4797.4,1.7628]
[1756078191014,1.78587164,4797.5,4797.4,1.7628]
[1756078191202,1.45987164,4797.5,4797.4,1.7628]
[1756078192410,0.66057164,4797.5,4797.4,1.7628]
[1756078193414,0.66057164,4797.5,4797.2,0.41695]
[1756078193415,0.4622,4797.6,4797.5,1.7628]
[1756078193609,0.7993,4797.6,4797.5,1.7628]
[1756078193806,1.45846971,4797.6,4797.5,1.7628]
[1756078194314,0.7993,4797.6,4797.5,1.7628]
[1756078194810,0.3371,4798.1,4797.6,1.0629]
[1756078195007,0.7993,4798.1,4798.0,1.7628]
[1756078195208,1.45837847,4798.1,4798.0,1.7628]
[1756078196007,1.78437847,4798.1,4798.0,1.7628]
[1756078196515,1.78437847,4798.1,4798.0,1.4277]
[1756078198112,1.78437847,4798.1,4798.0,1.2013]
[1756078198312,1.78437847,4798.1,4798.0,0.9616]
[1756078199311,1.1253,4798.1,4798.0,0.9616]
[1756078200017,1.1253,4798.1,4798.0,1.1757]
[1756078200219,1.7847523,4798.1,4798.0,1.7517]
[1756078200414,1.4587523,4798.1,4798.0,1.7517]
[1756078200614,0.7777,4798.9,4798.8,0.6765]
[1756078200818,1.43711115,4798.9,4798.8,1.7102]
[1756078201409,1.76831115,4798.9,4798.8,1.7102]
[1756078201817,1.76831115,4798.9,4798.8,1.3558]
[1756078202119,1.76831115,4798.9,4798.8,1.7102]
[1756078203018,1.76831115,4798.9,4798.8,1.3558]
[1756078203316,1.21341115,4798.9,4798.8,1.7102]
[1756078203518,1.43711115,4798.9,4798.8,1.7102]
[1756078203715,1.76831115,4798.9,4798.8,1.7102]
[1756078203916,1.76831115,4798.9,4798.8,1.3558]
[1756078204112,1.76831115,4798.9,4797.9,3.2078]
[1756078204113,1.7739851,4798.9,4797.9,3.2078]
[1756078204317,0.2237,4797.3,4797.2,0.576]
[1756078204521,0.2237,4797.3,4797.2,1.7102]
[1756078204715,0.3312,4798.1,4797.2,0.6765]
[1756078204915,1.1089,4797.8,4797.7,1.3558]
[1756078205114,1.1089,4797.8,4797.7,0.6793]
[1756078205626,41.9089,4797.8,4797.7,0.6793]
[1756078205816,41.9089,4797.8,4797.7,0.9201]
[1756078206210,41.9089,4797.8,4797.3,0.5952]
[1756078206416,0.4541,4797.5,4797.4,1.1342]
[1756078206616,1.1089,4797.5,4797.1,3.4486]
[1756078206816,0.4541,4797.3,4797.2,1.3558]
[1756078207016,0.7777,4797.3,4797.2,1.7102]
[1756078207826,0.6548,4797.2,4796.6,0.6793]
[1756078208117,0.2237,4796.2,4796.1,0.6793]
[1756078208326,41.9089,4796.2,4795.8,0.9201]
[1756078208629,1.1089,4796.0,4795.9,1.1342]
[1756078208813,1.1089,4796.0,4795.9,0.6793]
[1756078209125,0.7777,4795.9,4795.8,1.3558]
[1756078209325,1.1089,4795.9,4795.8,1.3558]
[1756078209527,1.1089,4795.9,4795.8,1.7102]
[1756078209825,0.2237,4795.4,4795.3,1.1342]
[1756078210013,1.1089,4795.4,4795.3,1.1342]
[1756078210212,0.7777,4795.4,4795.3,1.7102]
[1756078210414,40.8,4796.2,4795.8,1.7102]
[1756078210716,40.8,4796.2,4796.0,0.6765]
[1756078210917,41.1236,4796.2,4796.1,1.7102]
[1756078211113,41.4548,4796.2,4796.1,1.3558]
[1756078211322,0.7777,4795.8,4795.7,1.7102]
[1756078212922,19.38,4796.1,4795.7,1.7102]
[1756078213221,40.8,4796.2,4796.1,1.7102]
[1756078213424,41.78448729,4796.2,4796.1,1.7102]
[1756078213822,41.78448729,4796.2,4795.1,1.0337]
[1756078213823,0.3236,4796.1,4795.1,1.0337]
[1756078214028,0.7777,4795.3,4795.2,1.3672]
[1756078214221,19.381,4795.7,4795.2,1.3672]
[1756078214524,60.181,4796.2,4795.6,1.0337]
[1756078214715,60.181,4796.2,4796.1,1.7102]
[1756078214922,60.84170637,4796.2,4796.1,1.7102]
[1756078215115,41.46070637,4796.2,4796.1,1.7102]
[1756078215628,41.78430637,4796.2,4796.1,1.7102]
[1756078217420,42.11550637,4796.2,4796.1,1.1342]
[1756078217622,0.7777,4795.7,4795.6,1.3739]
[1756078218135,0.7777,4795.7,4795.6,1.7102]
[1756078218330,1.43902024,4795.7,4795.6,1.3558]
[1756078218635,0.66132024,4795.7,4795.6,1.7102]
[1756078219132,40.8,4796.2,4795.6,1.09359]
[1756078219340,60.8358,4796.2,4796.1,1.7102]
[1756078219528,61.49701211,4796.2,4796.1,1.3558]
[1756078219928,41.78481211,4796.2,4796.1,1.7102]
[1756078220836,41.46121211,4796.2,4796.1,1.7102]
[1756078221031,41.78481211,4796.2,4796.1,1.7102]
[1756078221235,42.10701211,4796.2,4796.1,0.6793]
[1756078221631,1.0999,4795.8,4795.7,0.6793]
[1756078221826,1.76111211,4795.8,4795.7,0.6793]
[1756078222026,1.43891211,4795.8,4795.7,0.6793]
[1756078222231,1.43891211,4795.8,4795.7,1.7102]
[1756078222433,1.11531211,4795.8,4795.7,1.1342]
[1756078222638,0.7777,4795.3,4795.2,1.1342]
[1756078222837,1.76107337,4795.3,4795.2,1.1342]
[1756078223336,0.2237,4795.0,4794.9,0.3363]
[1756078223537,0.7777,4795.0,4794.9,0.772]
[1756078223732,0.7777,4795.0,4794.9,1.7102]
[1756078224140,1.43873618,4795.0,4794.9,1.7102]
[1756078224341,42.23872461,4795.0,4794.9,1.7102]
[1756078225834,41.46102461,4795.0,4794.9,5.7102]
[1756078226035,19.379,4796.1,4795.5,1.3739]
[1756078226234,19.379,4796.1,4796.0,1.1342]
[1756078226235,20.6168,4796.1,4796.0,1.1342]
[1756078226429,61.4168,4796.1,4796.0,1.1342]
[1756078226840,61.739,4796.1,4796.0,1.1342]
[1756078227041,61.739,4796.1,4796.0,0.5504]
[1756078227236,0.8674,4796.0,4795.7,0.3363]
[1756078227539,1.56,4795.4,4795.3,0.7912]
[1756078227729,1.5684,4795.1,4795.0,0.323]
[1756078227930,20.0539,4795.1,4794.5,0.3544]
[1756078228134,0.6759,4794.8,4794.7,1.3336]
[1756078228442,1.2506,4794.8,4794.7,1.3336]
[1756078228638,1.2506,4794.8,4794.7,1.6593]
[1756078230233,1.5684,4794.8,4794.7,0.7891]